[Event "SS Manhem Chess Week GM and IM tournaments 2018"]
[Site "Molnlycke kulturhus, Biblioteksgatan 2, Molnlycke, Sweden"]
[Date "2018.08.16"]
[Round "8.7"]
[White "Hobber, Anders"]
[Black "Ernst, Thomas"]
[Result "0-1"]
[TimeControl "90 minutes for 40 moves + 30 minutes for the rest of the game + 30 seconds per move from move one."]
[WhiteTitle "FM"]
[BlackTitle "GM"]
[WhiteFideId "1505424"]
[BlackFideId "1700065"]
[WhiteElo "2314"]
[BlackElo "2346"]

1. d4 {[%clk 01:28:51]} {[%emt 00:02:08]} Nf6 {[%clk 01:30:51]} {[%emt
00:00:10]} 2. Nf3 {[%clk 01:28:31]} {[%emt 00:00:49]} g6 {[%clk 01:31:09]}
{[%emt 00:00:11]} 3. Nc3 {[%clk 01:28:44]} {[%emt 00:00:18]} d5 {[%clk
01:31:28]} {[%emt 00:00:12]} 4. Bf4 {[%clk 01:28:23]} {[%emt 00:00:51]} Bg7
{[%clk 01:31:42]} {[%emt 00:00:15]} 5. Nb5 {[%clk 01:28:03]} {[%emt 00:00:51]}
Na6 {[%clk 01:31:58]} {[%emt 00:00:15]} 6. e3 {[%clk 01:26:54]} {[%emt
00:01:38]} O-O {[%clk 01:29:57]} {[%emt 00:02:31]} 7. h3 {[%clk 01:27:01]}
{[%emt 00:00:23]} c5 {[%clk 01:29:24]} {[%emt 00:01:03]} 8. c3 {[%clk
01:24:36]} {[%emt 00:02:55]} cxd4 {[%clk 01:27:01]} {[%emt 00:02:53]} 9. exd4
{[%clk 01:24:24]} {[%emt 00:00:41]} Bf5 {[%clk 01:20:18]} {[%emt 00:07:12]} 10.
Be2 {[%clk 01:21:17]} {[%emt 00:03:38]} Be4 {[%clk 01:19:54]} {[%emt 00:00:54]}
11. O-O {[%clk 01:20:09]} {[%emt 00:01:38]} Bxf3 {[%clk 01:19:54]} {[%emt
00:00:31]} 12. Bxf3 {[%clk 01:20:32]} {[%emt 00:00:07]} Qd7 {[%clk 01:18:17]}
{[%emt 00:02:06]} 13. a4 {[%clk 01:19:03]} {[%emt 00:02:00]} Rfd8 {[%clk
01:15:21]} {[%emt 00:03:26]} 14. Re1 {[%clk 01:11:47]} {[%emt 00:07:45]} e6
{[%clk 01:12:56]} {[%emt 00:02:56]} 15. Qd2 {[%clk 01:04:13]} {[%emt 00:08:05]}
Ne8 {[%clk 01:12:47]} {[%emt 00:00:40]} 16. Be2 {[%clk 00:59:19]} {[%emt
00:05:23]} Nac7 {[%clk 01:11:51]} {[%emt 00:01:25]} 17. Bd3 {[%clk 00:52:05]}
{[%emt 00:07:44]} a6 {[%clk 01:10:46]} {[%emt 00:01:36]} 18. Nxc7 {[%clk
00:43:51]} {[%emt 00:08:44]} Nxc7 {[%clk 01:10:58]} {[%emt 00:00:19]} 19. h4
{[%clk 00:43:33]} {[%emt 00:00:48]} Ne8 {[%clk 01:09:14]} {[%emt 00:02:13]} 20.
h5 {[%clk 00:38:37]} {[%emt 00:05:26]} Nf6 {[%clk 01:04:09]} {[%emt 00:05:35]}
21. hxg6 {[%clk 00:38:02]} {[%emt 00:01:05]} hxg6 {[%clk 01:03:56]} {[%emt
00:00:44]} 22. Bg5 {[%clk 00:28:14]} {[%emt 00:10:17]} Re8 {[%clk 01:03:21]}
{[%emt 00:01:05]} 23. a5 {[%clk 00:22:28]} {[%emt 00:06:16]} Qc6 {[%clk
01:00:21]} {[%emt 00:03:29]} 24. Qf4 {[%clk 00:16:16]} {[%emt 00:06:42]} Nd7
{[%clk 01:00:07]} {[%emt 00:00:44]} 25. Qh4 {[%clk 00:11:30]} {[%emt 00:05:15]}
e5 {[%clk 00:58:24]} {[%emt 00:02:14]} 26. Re3 {[%clk 00:08:23]} {[%emt
00:03:37]} exd4 {[%clk 00:47:09]} {[%emt 00:11:45]} 27. Rh3 {[%clk 00:08:46]}
{[%emt 00:00:06]} dxc3 {[%clk 00:47:21]} {[%emt 00:00:19]} 28. Qh7+ {[%clk
00:08:00]} {[%emt 00:01:16]} Kf8 {[%clk 00:47:45]} {[%emt 00:00:06]} 29. Bh6
{[%clk 00:08:00]} {[%emt 00:00:30]} Bxh6 {[%clk 00:48:07]} {[%emt 00:00:08]} 30.
Qxh6+ {[%clk 00:06:46]} {[%emt 00:01:44]} Ke7 {[%clk 00:48:31]} {[%emt
00:00:06]} 31. Re1+ {[%clk 00:06:07]} {[%emt 00:01:08]} Kd6 {[%clk 00:48:42]}
{[%emt 00:00:19]} 32. Qf4+ {[%clk 00:06:16]} {[%emt 00:00:21]} Ne5 {[%clk
00:48:50]} {[%emt 00:00:21]} 33. Rhe3 {[%clk 00:04:55]} {[%emt 00:01:52]} g5
{[%clk 00:48:41]} {[%emt 00:00:39]} 34. Qh2 {[%clk 00:01:01]} {[%emt 00:04:24]}
f6 {[%clk 00:47:38]} {[%emt 00:01:33]} 35. Qh6 {[%clk 00:00:43]} {[%emt
00:00:49]} Ng4 {[%clk 00:40:33]} {[%emt 00:07:34]} 36. Qg7 {[%clk 00:00:43]}
{[%emt 00:00:30]} Nxe3 {[%clk 00:35:11]} {[%emt 00:05:52]} 37. fxe3 {[%clk
00:00:58]} {[%emt 00:00:15]} Re6 {[%clk 00:29:39]} {[%emt 00:06:01]} 38. Bf5
{[%clk 00:00:52]} {[%emt 00:00:37]} c2 {[%clk 00:26:38]} {[%emt 00:03:30]} 39.
Rc1 {[%clk 00:01:00]} {[%emt 00:00:23]} Qc5 {[%clk 00:26:23]} {[%emt 00:00:44]}
40. Rxc2 {[%clk 00:01:05]} {[%emt 00:00:26]} Qxe3+ {[%clk 00:26:44]} {[%emt
00:00:09]} 41. Rf2 {[%clk 00:24:36]} {[%emt 00:06:59]} Re7 {[%clk 00:47:31]}
{[%emt 00:09:43]} 42. Qxf6+ {[%clk 00:23:36]} {[%emt 00:01:30]} Kc7 {[%clk
00:47:27]} {[%emt 00:00:33]} 43. Bh3 {[%clk 00:18:07]} {[%emt 00:06:00]} Rae8
{[%clk 00:44:01]} {[%emt 00:03:55]} 44. Kh1 {[%clk 00:18:18]} {[%emt 00:00:20]}
Qe1+ {[%clk 00:43:59]} {[%emt 00:00:32]} 45. Kh2 {[%clk 00:17:57]} {[%emt
00:00:52]} Qe5+ {[%clk 00:43:37]} {[%emt 00:00:52]} 46. Qxe5+ {[%clk 00:18:24]}
{[%emt 00:00:03]} Rxe5 {[%clk 00:43:59]} {[%emt 00:00:08]} 47. Kg3 {[%clk
00:18:27]} {[%emt 00:00:27]} d4 {[%clk 00:43:36]} {[%emt 00:00:52]} 0-1

[Event "SS Manhem Chess Week GM and IM tournaments 2018"]
[Site "Molnlycke kulturhus, Biblioteksgatan 2, Molnlycke, Sweden"]
[Date "2018.08.16"]
[Round "8.8"]
[White "Rydstrom, Tom"]
[Black "Antonsen, Mikkel"]
[Result "1/2-1/2"]
[TimeControl "90 minutes for 40 moves + 30 minutes for the rest of the game + 30 seconds per move from move one."]
[WhiteTitle "FM"]
[BlackTitle "IM"]
[WhiteFideId "1714830"]
[BlackFideId "1401378"]
[WhiteElo "2316"]
[BlackElo "2444"]

1. e4 {[%clk 01:30:53]} {[%emt 00:00:05]} e5 {[%clk 01:30:54]} {[%emt
00:00:07]} 2. Nf3 {[%clk 01:31:19]} {[%emt 00:00:04]} Nf6 {[%clk 01:30:27]}
{[%emt 00:00:57]} 3. Nc3 {[%clk 01:31:45]} {[%emt 00:00:04]} Nc6 {[%clk
01:30:47]} {[%emt 00:00:10]} 4. Bb5 {[%clk 01:31:32]} {[%emt 00:00:43]} Bd6
{[%clk 01:30:49]} {[%emt 00:00:27]} 5. d3 {[%clk 01:31:36]} {[%emt 00:00:26]}
h6 {[%clk 01:28:46]} {[%emt 00:02:34]} 6. Ne2 {[%clk 01:28:17]} {[%emt
00:03:49]} O-O {[%clk 01:26:26]} {[%emt 00:02:50]} 7. Ng3 {[%clk 01:26:23]}
{[%emt 00:02:24]} Re8 {[%clk 01:19:34]} {[%emt 00:07:21]} 8. c3 {[%clk
01:26:46]} {[%emt 00:00:08]} Bf8 {[%clk 01:19:17]} {[%emt 00:00:47]} 9. O-O
{[%clk 01:27:11]} {[%emt 00:00:05]} a6 {[%clk 01:16:23]} {[%emt 00:03:25]} 10.
Ba4 {[%clk 01:27:31]} {[%emt 00:00:09]} b5 {[%clk 01:07:35]} {[%emt 00:09:18]}
11. Bc2 {[%clk 01:27:10]} {[%emt 00:00:50]} d6 {[%clk 01:02:09]} {[%emt
00:05:56]} 12. Re1 {[%clk 01:27:07]} {[%emt 00:00:33]} Nb8 {[%clk 00:48:52]}
{[%emt 00:13:47]} 13. a4 {[%clk 01:27:23]} {[%emt 00:00:14]} Bb7 {[%clk
00:49:11]} {[%emt 00:00:11]} 14. h3 {[%clk 01:25:13]} {[%emt 00:02:40]} Nbd7
{[%clk 00:49:30]} {[%emt 00:00:11]} 15. Nh2 {[%clk 01:16:40]} {[%emt 00:09:03]}
d5 {[%clk 00:46:09]} {[%emt 00:03:51]} 16. axb5 {[%clk 01:16:45]} {[%emt
00:00:26]} axb5 {[%clk 00:46:21]} {[%emt 00:00:18]} 17. Rxa8 {[%clk 01:17:09]}
{[%emt 00:00:05]} Bxa8 {[%clk 00:45:39]} {[%emt 00:01:13]} 18. Ng4 {[%clk
01:17:11]} {[%emt 00:00:28]} Nxg4 {[%clk 00:38:08]} {[%emt 00:08:01]} 19. Qxg4
{[%clk 01:16:24]} {[%emt 00:01:16]} Nf6 {[%clk 00:37:48]} {[%emt 00:00:50]} 20.
Qe2 {[%clk 01:15:14]} {[%emt 00:01:40]} c5 {[%clk 00:36:22]} {[%emt 00:01:56]}
21. Bd2 {[%clk 01:10:38]} {[%emt 00:05:06]} Qb6 {[%clk 00:31:04]} {[%emt
00:05:48]} 22. Nf5 {[%clk 01:04:25]} {[%emt 00:06:42]} dxe4 {[%clk 00:30:01]}
{[%emt 00:01:33]} 23. dxe4 {[%clk 01:04:54]} {[%emt 00:00:02]} Bb7 {[%clk
00:29:47]} {[%emt 00:00:44]} 24. Qe3 {[%clk 01:01:28]} {[%emt 00:03:55]} Qe6
{[%clk 00:25:57]} {[%emt 00:04:20]} 25. c4 {[%clk 00:30:25]} {[%emt 00:31:33]}
bxc4 {[%clk 00:20:03]} {[%emt 00:06:24]} 26. f3 {[%clk 00:28:02]} {[%emt
00:02:53]} Nh5 {[%clk 00:18:21]} {[%emt 00:02:12]} 27. Qc3 {[%clk 00:24:28]}
{[%emt 00:04:03]} Nf4 {[%clk 00:18:09]} {[%emt 00:00:42]} 28. Ne3 {[%clk
00:24:38]} {[%emt 00:00:20]} Ba6 {[%clk 00:14:59]} {[%emt 00:03:40]} 29. Kh2
{[%clk 00:23:21]} {[%emt 00:01:47]} Rd8 {[%clk 00:13:24]} {[%emt 00:02:06]} 30.
Ra1 {[%clk 00:23:06]} {[%emt 00:00:45]} Qg6 {[%clk 00:10:55]} {[%emt 00:02:58]}
31. Be1 {[%clk 00:22:36]} {[%emt 00:00:59]} Bc8 {[%clk 00:10:19]} {[%emt
00:01:06]} 32. Qxc4 {[%clk 00:21:36]} {[%emt 00:01:30]} Qg5 {[%clk 00:09:19]}
{[%emt 00:01:31]} 33. h4 {[%clk 00:18:51]} {[%emt 00:03:15]} Qg6 {[%clk
00:08:50]} {[%emt 00:00:59]} 34. g3 {[%clk 00:16:52]} {[%emt 00:02:28]} Ne6
{[%clk 00:09:12]} {[%emt 00:00:09]} 35. Ba5 {[%clk 00:15:16]} {[%emt 00:02:06]}
Rd6 {[%clk 00:06:59]} {[%emt 00:02:44]} 36. Nf5 {[%clk 00:15:17]} {[%emt
00:00:28]} Ra6 {[%clk 00:06:01]} {[%emt 00:01:29]} 37. b4 {[%clk 00:14:20]}
{[%emt 00:01:28]} Qf6 {[%clk 00:02:40]} {[%emt 00:03:50]} 38. Kg2 {[%clk
00:09:26]} {[%emt 00:05:23]} g6 {[%clk 00:02:44]} {[%emt 00:00:26]} 39. Ne3
{[%clk 00:09:50]} {[%emt 00:00:05]} Nd4 {[%clk 00:03:08]} {[%emt 00:00:06]} 40.
Bd1 {[%clk 00:10:08]} {[%emt 00:00:12]} Qe6 {[%clk 00:02:36]} {[%emt 00:01:02]}
41. Qxe6 {[%clk 00:04:51]} {[%emt 00:05:47]} Bxe6 {[%clk 00:02:17]} {[%emt
00:00:49]} 42. bxc5 {[%clk 00:04:36]} {[%emt 00:00:46]} Bxc5 {[%clk 00:02:20]}
{[%emt 00:00:27]} 43. Bc3 {[%clk 00:04:57]} {[%emt 00:00:08]} Rxa1 {[%clk
00:02:08]} {[%emt 00:00:42]} 1/2-1/2

[Event "SS Manhem Chess Week GM and IM tournaments 2018"]
[Site "Molnlycke kulturhus, Biblioteksgatan 2, Molnlycke, Sweden"]
[Date "2018.08.16"]
[Round "8.9"]
[White "Nedilko, Vasily"]
[Black "Storme, Isak"]
[Result "1-0"]
[TimeControl "90 minutes for 40 moves + 30 minutes for the rest of the game + 30 seconds per move from move one."]
[WhiteTitle "IM"]
[BlackTitle "FM"]
[WhiteFideId "14101459"]
[BlackFideId "1728113"]
[WhiteElo "2369"]
[BlackElo "2279"]

1. d4 {[%clk 01:30:57]} {[%emt 00:00:02]} Nf6 {[%clk 01:28:24]} {[%emt
00:02:36]} 2. c4 {[%clk 01:31:20]} {[%emt 00:00:06]} e6 {[%clk 01:28:50]}
{[%emt 00:00:05]} 3. Nf3 {[%clk 01:31:36]} {[%emt 00:00:14]} d5 {[%clk
01:29:14]} {[%emt 00:00:06]} 4. g3 {[%clk 01:31:59]} {[%emt 00:00:07]} Bb4+
{[%clk 01:29:34]} {[%emt 00:00:09]} 5. Bd2 {[%clk 01:32:22]} {[%emt 00:00:08]}
Bd6 {[%clk 01:29:58]} {[%emt 00:00:06]} 6. Bg2 {[%clk 01:32:01]} {[%emt
00:00:50]} O-O {[%clk 01:30:02]} {[%emt 00:00:26]} 7. Qc2 {[%clk 01:32:09]}
{[%emt 00:00:23]} c6 {[%clk 01:25:58]} {[%emt 00:04:34]} 8. O-O {[%clk
01:23:28]} {[%emt 00:09:10]} Ne4 {[%clk 01:25:31]} {[%emt 00:00:57]} 9. Nc3
{[%clk 01:18:44]} {[%emt 00:05:14]} Nxd2 {[%clk 01:22:43]} {[%emt 00:03:18]} 10.
Nxd2 {[%clk 01:17:08]} {[%emt 00:02:06]} f5 {[%clk 01:22:59]} {[%emt 00:00:14]}
11. Rab1 {[%clk 01:13:37]} {[%emt 00:04:01]} Qe7 {[%clk 01:16:27]} {[%emt
00:07:02]} 12. e3 {[%clk 01:09:07]} {[%emt 00:05:00]} Nd7 {[%clk 01:14:18]}
{[%emt 00:02:39]} 13. a3 {[%clk 01:08:32]} {[%emt 00:01:05]} Nf6 {[%clk
01:10:25]} {[%emt 00:04:22]} 14. b4 {[%clk 00:51:49]} {[%emt 00:17:14]} Bd7
{[%clk 01:06:38]} {[%emt 00:04:16]} 15. b5 {[%clk 00:39:56]} {[%emt 00:12:23]}
Bxa3 {[%clk 00:59:38]} {[%emt 00:07:31]} 16. c5 {[%clk 00:40:16]} {[%emt
00:00:10]} cxb5 {[%clk 00:58:55]} {[%emt 00:01:13]} 17. Nxb5 {[%clk 00:38:01]}
{[%emt 00:02:45]} Bxb5 {[%clk 00:59:10]} {[%emt 00:00:15]} 18. Rxb5 {[%clk
00:38:25]} {[%emt 00:00:06]} a5 {[%clk 00:58:57]} {[%emt 00:00:42]} 19. Nf3
{[%clk 00:37:20]} {[%emt 00:01:35]} Bb4 {[%clk 00:53:42]} {[%emt 00:05:46]} 20.
Ne5 {[%clk 00:30:57]} {[%emt 00:06:53]} Ne4 {[%clk 00:38:30]} {[%emt 00:15:42]}
21. Ra1 {[%clk 00:22:57]} {[%emt 00:08:30]} Ra6 {[%clk 00:36:00]} {[%emt
00:03:00]} 22. Bf1 {[%clk 00:22:41]} {[%emt 00:00:46]} Rfa8 {[%clk 00:22:47]}
{[%emt 00:13:43]} 23. Nd3 {[%clk 00:20:44]} {[%emt 00:02:26]} Qc7 {[%clk
00:12:46]} {[%emt 00:10:32]} 24. Nxb4 {[%clk 00:16:58]} {[%emt 00:04:16]} axb4
{[%clk 00:13:09]} {[%emt 00:00:06]} 25. Rxa6 {[%clk 00:17:17]} {[%emt
00:00:12]} Rxa6 {[%clk 00:13:04]} {[%emt 00:00:35]} 26. Rxb4 {[%clk 00:17:22]}
{[%emt 00:00:24]} Ra1 {[%clk 00:13:17]} {[%emt 00:00:18]} 27. Rb6 {[%clk
00:14:01]} {[%emt 00:03:50]} Kf7 {[%clk 00:12:33]} {[%emt 00:01:13]} 28. Qb2
{[%clk 00:13:51]} {[%emt 00:00:40]} Ra7 {[%clk 00:12:46]} {[%emt 00:00:18]} 29.
Bd3 {[%clk 00:10:59]} {[%emt 00:03:22]} Nf6 {[%clk 00:12:47]} {[%emt 00:00:28]}
30. Bb5 {[%clk 00:09:52]} {[%emt 00:01:38]} Ne4 {[%clk 00:12:29]} {[%emt
00:00:48]} 31. Kg2 {[%clk 00:09:58]} {[%emt 00:00:22]} Nf6 {[%clk 00:12:06]}
{[%emt 00:00:54]} 32. h3 {[%clk 00:10:05]} {[%emt 00:00:23]} Ne4 {[%clk
00:12:11]} {[%emt 00:00:25]} 33. Bd3 {[%clk 00:10:18]} {[%emt 00:00:16]} Nf6
{[%clk 00:12:13]} {[%emt 00:00:29]} 34. Be2 {[%clk 00:10:18]} {[%emt 00:00:29]}
Ne4 {[%clk 00:11:16]} {[%emt 00:01:28]} 35. Bf3 {[%clk 00:10:19]} {[%emt
00:00:29]} Nf6 {[%clk 00:11:30]} {[%emt 00:00:17]} 36. Qb1 {[%clk 00:09:57]}
{[%emt 00:00:50]} Ke7 {[%clk 00:09:20]} {[%emt 00:02:41]} 37. g4 {[%clk
00:07:07]} {[%emt 00:03:20]} g6 {[%clk 00:09:26]} {[%emt 00:00:25]} 38. g5
{[%clk 00:06:05]} {[%emt 00:01:32]} Ne4 {[%clk 00:08:38]} {[%emt 00:01:18]} 39.
Bxe4 {[%clk 00:05:38]} {[%emt 00:00:57]} fxe4 {[%clk 00:08:54]} {[%emt
00:00:14]} 40. Qb5 {[%clk 00:03:08]} {[%emt 00:03:00]} Kf7 {[%clk 00:01:53]}
{[%emt 00:07:30]} 41. Qe2 {[%clk 00:01:47]} {[%emt 00:01:49]} Ra8 {[%clk
00:26:39]} {[%emt 00:05:47]} 42. Qg4 {[%clk 00:30:45]} {[%emt 00:01:31]} Qe7
{[%clk 00:24:50]} {[%emt 00:02:19]} 43. Qf4+ {[%clk 00:30:28]} {[%emt
00:00:48]} Kg7 {[%clk 00:24:53]} {[%emt 00:00:26]} 44. Qe5+ {[%clk 00:30:34]}
{[%emt 00:00:24]} Kf7 {[%clk 00:25:15]} {[%emt 00:00:08]} 45. h4 {[%clk
00:25:07]} {[%emt 00:05:57]} Rc8 {[%clk 00:24:07]} {[%emt 00:01:39]} 46. Kg3
{[%clk 00:23:47]} {[%emt 00:01:48]} Re8 {[%clk 00:19:29]} {[%emt 00:05:10]} 47.
Kg4 {[%clk 00:16:55]} {[%emt 00:07:22]} Kg8 {[%clk 00:14:53]} {[%emt 00:05:07]}
48. Qf6 {[%clk 00:06:15]} {[%emt 00:11:09]} Qd7 {[%clk 00:15:09]} {[%emt
00:00:13]} 49. Kg3 {[%clk 00:06:18]} {[%emt 00:00:26]} Qc7+ {[%clk 00:13:29]}
{[%emt 00:02:11]} 50. Kg2 {[%emt 00:00:29]} Qd7 {[%clk 00:12:42]} {[%emt
00:01:15]} 51. Rd6 {[%clk 00:06:09]} {[%emt 00:00:42]} Qb5 {[%clk 00:09:34]}
{[%emt 00:03:38]} 52. Kh2 {[%clk 00:05:10]} {[%emt 00:01:26]} Qa4 {[%clk
00:09:25]} {[%emt 00:00:41]} 53. c6 {[%clk 00:05:15]} {[%emt 00:00:25]} Rf8
{[%clk 00:06:28]} {[%emt 00:03:27]} 54. Rd8 {[%clk 00:04:18]} {[%emt 00:01:27]}
Rxd8 {[%clk 00:06:11]} {[%emt 00:00:48]} 55. Qxd8+ {[%clk 00:04:39]} {[%emt
00:00:09]} Kg7 {[%clk 00:06:34]} {[%emt 00:00:06]} 56. Qc7+ {[%clk 00:04:55]}
{[%emt 00:00:13]} 1-0